fUST/lending_fUST_20250719
["ID","MTS","AMOUNT","RATE_DAILY","PERIOD"]
[373192566,1752900641712,-500.0,0.00016473,2]
[373192567,1752900641723,-435.57503498,0.00016473,2]
[373192568,1752900641736,-155.17052372,0.00016473,2]
[373192569,1752900641748,-500.0,0.00016473,2]
[373192570,1752900641759,-433.87796793,0.00016473,2]
[373192571,1752900641771,-500.53311728,0.00016473,2]
[373192572,1752900641781,-500.0,0.00016473,2]
[373192573,1752900641792,-514.44062589,0.00016473,2]
[373192574,1752900641802,-500.74033867,0.00016473,2]
[373192575,1752900641814,-501.09113858,0.00016473,2]
[373192576,1752900641825,-500.0,0.00016473,2]
[373192577,1752900641842,-500.0,0.00016473,2]
[373192578,1752900641855,-500.0,0.00016473,2]
[373192579,1752900641867,-1143.57,0.00016497,2]
[373192580,1752900641880,-460.0,0.00016497,2]
[373192581,1752900641890,-2794.93506348,0.00016612,2]
[373192582,1752900641903,-500.0,0.00016711,2]
[373192583,1752900641918,-460.0,0.00016712,2]
[373192584,1752900641930,-460.0,0.00016712,2]
[373192585,1752900641943,-418.3573526,0.00016712,2]
[373192586,1752900641955,-460.0,0.00016712,2]
[373192587,1752900641966,-460.0,0.00016712,2]
[373192588,1752900641977,-460.0,0.00016712,2]
[373192589,1752900641987,-460.0,0.00016712,2]
[373192590,1752900641998,-460.0,0.00016712,2]
[373192591,1752900642008,-460.0,0.00016712,2]
[373192592,1752900642019,-460.0,0.00016712,2]
[373192593,1752900642032,-460.0,0.00016712,2]
[373192594,1752900642045,-460.0,0.00016712,2]
[373192595,1752900642057,-460.0,0.00016712,2]
[373192596,1752900642069,-460.0,0.00016712,2]
[373192597,1752900642079,-460.0,0.00016712,2]
[373192598,1752900642090,-460.0,0.00016712,2]
[373192599,1752900642101,-468.95497724,0.00016712,2]
[373192600,1752900642113,-460.0,0.00016712,2]
[373192601,1752900642124,-460.0,0.00016712,2]
[373192602,1752900642136,-560.82,0.00016712,2]
[373192603,1752900642147,-460.0,0.00016712,2]
[373192604,1752900642157,-460.0,0.00016712,2]
[373192605,1752900642167,-460.0,0.00016712,2]
[373192606,1752900642178,-592.80965756,0.00016712,2]
[373192607,1752900642188,-460.0,0.00016712,2]
[373192608,1752900642199,-335.98684015,0.00016712,2]
[373192609,1752900642210,-460.0,0.00016712,2]
[373192610,1752900642222,-460.0,0.00016712,2]
[373192611,1752900642233,-470.56178733,0.00016712,2]
[373192612,1752900642244,-460.0,0.00016712,2]
[373192613,1752900642259,-460.0,0.00016712,2]
[373192614,1752900642270,-460.0,0.00016712,2]
[373192615,1752900642280,-536.6,0.00016712,2]
[373192616,1752900642292,-460.0,0.00016712,2]
[373192617,1752900642303,-598.51548739,0.00016712,2]
[373192618,1752900642314,-460.0,0.00016712,2]
[373192619,1752900642325,-460.0,0.00016712,2]
[373192620,1752900642336,-460.0,0.00016712,2]
[373192621,1752900642347,-460.0,0.00016712,2]
[373192622,1752900642358,-460.0,0.00016712,2]
[373192623,1752900642369,-460.0,0.00016712,2]
[373192624,1752900642379,-460.0,0.00016712,2]
[373192626,1752900642390,-460.0,0.00016712,2]
[373192627,1752900642401,-460.0,0.00016712,2]
[373192628,1752900642412,-460.0,0.00016712,2]
[373192629,1752900642422,-460.0,0.00016712,2]
[373192630,1752900642433,-460.0,0.00016712,2]
[373192631,1752900642443,-286.21242079,0.00016712,2]
[373192632,1752900642454,-460.0,0.00016712,2]
[373192633,1752900642465,-460.0,0.00016712,2]
[373192634,1752900642475,-460.0,0.00016712,2]
[373192635,1752900642486,-460.0,0.00016712,2]
[373192636,1752900642496,-460.0,0.00016712,2]
[373192637,1752900642507,-460.0,0.00016712,2]
[373192638,1752900642517,-460.0,0.00016712,2]
[373192639,1752900642527,-460.0,0.00016712,2]
[373192640,1752900642538,-460.0,0.00016712,2]
[373192641,1752900642548,-460.0,0.00016712,2]
[373192642,1752900642559,-460.0,0.00016712,2]
[373192643,1752900642569,-460.0,0.00016712,2]
[373192644,1752900642579,-266.83211746,0.00016712,2]
[373192645,1752900642591,-469.6631532,0.00016712,2]
[373192646,1752900642602,-460.0,0.00016712,2]
[373192647,1752900642613,-267.75515917,0.00016712,2]
[373192648,1752900642624,-460.0,0.00016712,2]
[373192649,1752900642635,-460.0,0.00016712,2]
[373192650,1752900642645,-460.0,0.00016712,2]
[373192651,1752900642655,-460.0,0.00016712,2]
[373192652,1752900642667,-460.0,0.00016712,2]
[373192653,1752900642677,-460.0,0.00016712,2]
[373192654,1752900642687,-460.0,0.00016712,2]
[373192655,1752900642698,-460.0,0.00016712,2]
[373192656,1752900642709,-460.0,0.00016712,2]
[373192657,1752900642720,-460.0,0.00016712,2]
[373192658,1752900642731,-525.46718887,0.00016712,2]
[373192659,1752900642741,-460.0,0.00016712,2]
[373192660,1752900642752,-460.0,0.00016712,2]
[373192661,1752900642763,-460.0,0.00016712,2]
[373192662,1752900642773,-441.39320519,0.00016712,2]
[373192663,1752900642784,-460.0,0.00016712,2]
[373192664,1752900642795,-460.0,0.00016712,2]
[373192665,1752900642806,-460.0,0.00016712,2]
[373192666,1752900642816,-1075.38,0.00016712,2]
[373192667,1752900642828,-460.0,0.00016712,2]
[373192668,1752900642840,-460.0,0.00016712,2]
[373192669,1752900642851,-512.88,0.00016712,2]
[373192670,1752900642862,-460.0,0.00016712,2]
[373192671,1752900642872,-460.0,0.00016712,2]
[373192672,1752900642882,-460.0,0.00016712,2]
[373192673,1752900642891,-460.0,0.00016712,2]
[373192674,1752900642901,-460.0,0.00016712,2]
[373192675,1752900642910,-460.0,0.00016712,2]
[373192676,1752900642920,-460.0,0.00016712,2]
[373192677,1752900642929,-460.0,0.00016712,2]
[373192678,1752900642939,-460.0,0.00016712,2]
[373192679,1752900642948,-460.0,0.00016712,2]
[373192680,1752900642958,-460.0,0.00016712,2]
[373192681,1752900642967,-460.0,0.00016712,2]
[373192682,1752900642977,-460.0,0.00016712,2]
[373192683,1752900642987,-460.0,0.00016712,2]
[373192684,1752900642997,-460.0,0.00016712,2]
[373192685,1752900643007,-460.0,0.00016712,2]
[373192690,1752900643185,-276.78973699,0.00016712,2]
[373192693,1752900643197,-460.0,0.00016712,2]
[373192695,1752900643206,-460.0,0.00016712,2]
[373192697,1752900643215,-460.0,0.00016712,2]
[373192699,1752900643225,-589.46,0.00016712,2]
[373192701,1752900643234,-460.0,0.00016712,2]
[373192703,1752900643243,-3599.72,0.00016712,2]
[373192705,1752900643256,-460.0,0.00016712,2]
[373192707,1752900643265,-460.0,0.00016712,2]
[373192709,1752900643275,-2287.74,0.00016712,2]
[373192711,1752900643284,-460.0,0.00016712,2]
[373192713,1752900643293,-460.0,0.00016712,2]
[373192714,1752900643302,-460.0,0.00016712,2]
[373192716,1752900643312,-2754.9,0.00016712,2]
[373192718,1752900643321,-460.0,0.00016712,2]
[373192720,1752900643331,-467.05546473,0.00016712,2]
[373192722,1752900643342,-460.0,0.00016712,2]
[373192723,1752900643351,-350.75903678,0.00016712,2]
[373192725,1752900643361,-460.0,0.00016712,2]
[373192728,1752900643371,-471.42,0.00016712,2]
[373192729,1752900643381,-460.0,0.00016712,2]
[373192732,1752900643391,-460.0,0.00016712,2]
[373192734,1752900643400,-460.0,0.00016712,2]
[373192735,1752900643410,-460.0,0.00016712,2]
[373192737,1752900643419,-460.0,0.00016712,2]
[373192740,1752900643429,-460.0,0.00016712,2]
[373192741,1752900643438,-460.0,0.00016712,2]
[373192744,1752900643448,-920.5,0.00016712,2]
[373192745,1752900643457,-460.0,0.00016712,2]
[373192747,1752900643467,-460.0,0.00016712,2]
[373192749,1752900643476,-460.0,0.00016712,2]
[373192751,1752900643486,-460.0,0.00016712,2]
[373192754,1752900643495,-460.0,0.00016712,2]
[373192755,1752900643504,-1712.89,0.00016712,2]
[373192758,1752900643514,-460.0,0.00016712,2]
[373192759,1752900643523,-557.01,0.00016712,2]
[373192762,1752900643533,-460.0,0.00016712,2]
[373192764,1752900643543,-776.6,0.00016712,2]
[373192766,1752900643552,-460.0,0.00016712,2]
[373192767,1752900643561,-460.0,0.00016712,2]
[373192769,1752900643571,-460.0,0.00016712,2]
[373192772,1752900643582,-460.0,0.00016712,2]
[373192774,1752900643592,-460.0,0.00016712,2]
[373192776,1752900643601,-964.8,0.00016712,2]
[373192778,1752900643610,-460.0,0.00016712,2]
[373192780,1752900643620,-460.0,0.00016712,2]
[373192782,1752900643629,-460.0,0.00016712,2]
[373192784,1752900643639,-893.47,0.00016712,2]
[373192786,1752900643648,-460.0,0.00016712,2]
[373192788,1752900643658,-460.0,0.00016712,2]
[373192790,1752900643667,-460.0,0.00016712,2]
[373192792,1752900643678,-460.0,0.00016712,2]
[373192794,1752900643688,-1517.57,0.00016712,2]
[373192796,1752900643698,-460.0,0.00016712,2]
[373192798,1752900643707,-460.0,0.00016712,2]
[373192800,1752900643717,-460.0,0.00016712,2]
[373192802,1752900643726,-460.0,0.00016712,2]
[373192804,1752900643735,-460.0,0.00016712,2]
[373192806,1752900643744,-460.0,0.00016712,2]
[373192808,1752900643754,-460.0,0.00016712,2]
[373192810,1752900643763,-460.0,0.00016712,2]
[373192812,1752900643772,-460.0,0.00016712,2]
[373192814,1752900643782,-512.78,0.00016712,2]
[373192816,1752900643791,-460.0,0.00016712,2]
[373192818,1752900643801,-1602.46,0.00016712,2]
[373192820,1752900643810,-460.0,0.00016712,2]
[373192822,1752900643820,-460.0,0.00016712,2]
[373192824,1752900643829,-460.0,0.00016712,2]
[373192826,1752900643839,-460.0,0.00016712,2]
[373192828,1752900643849,-1744.08,0.00016712,2]
[373192830,1752900643858,-460.0,0.00016712,2]
[373192832,1752900643867,-460.0,0.00016712,2]
[373192834,1752900643877,-460.0,0.00016712,2]
[373192836,1752900643886,-460.0,0.00016712,2]
[373192838,1752900643896,-460.0,0.00016712,2]
[373192840,1752900643905,-460.0,0.00016712,2]
[373192842,1752900643915,-460.0,0.00016712,2]
[373192844,1752900643925,-460.0,0.00016712,2]
[373192846,1752900643934,-460.0,0.00016712,2]
[373192848,1752900643944,-460.0,0.00016712,2]
[373192850,1752900643953,-460.0,0.00016712,2]
[373192852,1752900643962,-460.0,0.00016712,2]
[373192854,1752900643972,-460.0,0.00016712,2]
[373192857,1752900643990,-460.0,0.00016712,2]
[373192859,1752900644002,-460.0,0.00016712,2]
[373192861,1752900644012,-460.0,0.00016712,2]
[373192863,1752900644022,-460.0,0.00016712,2]
[373192865,1752900644032,-1317.83,0.00016712,2]
[373192868,1752900644042,-460.0,0.00016712,2]
[373192870,1752900644052,-460.0,0.00016712,2]
[373192872,1752900644062,-196.71178331,0.00016712,2]
[373192874,1752900644072,-460.0,0.00016712,2]
[373192876,1752900644083,-460.0,0.00016712,2]
[373192878,1752900644093,-460.0,0.00016712,2]
[373192880,1752900644103,-1143.57,0.00016771,2]
[373192882,1752900644112,-460.0,0.00016771,2]
[373192884,1752900644122,-1182.27571544,0.00016817,2]
[373192886,1752900644132,-3731.37734857,0.000169,2]
[373192888,1752900644142,-500.0,0.00016985,2]
[373192890,1752900644152,-460.0,0.00016986,2]
[373192892,1752900644162,-460.0,0.00016986,2]
[373192894,1752900644171,-460.0,0.00016986,2]
[373192896,1752900644181,-460.0,0.00016986,2]
[373192898,1752900644191,-542.63791258,0.00016986,2]
[373192900,1752900644201,-460.0,0.00016986,2]
[373192902,1752900644210,-427.76702256,0.00016986,2]
[373192904,1752900644219,-460.0,0.00016986,2]
[373192906,1752900644230,-460.0,0.00016986,2]
[373192909,1752900644240,-460.0,0.00016986,2]
[373192910,1752900644253,-460.0,0.00016986,2]
[373192913,1752900644263,-460.0,0.00016986,2]
[373192915,1752900644272,-560.82,0.00016986,2]
[373192917,1752900644282,-460.0,0.00016986,2]
[373192918,1752900644291,-460.0,0.00016986,2]
[373192921,1752900644301,-465.04511376,0.00016986,2]
[373192923,1752900644311,-460.0,0.00016986,2]
[373192924,1752900644321,-460.0,0.00016986,2]
[373192927,1752900644331,-460.0,0.00016986,2]
[373192928,1752900644342,-460.0,0.00016986,2]
[373192931,1752900644352,-460.0,0.00016986,2]
[373192933,1752900644361,-460.0,0.00016986,2]
[373192935,1752900644371,-460.0,0.00016986,2]
[373192937,1752900644380,-460.0,0.00016986,2]
[373192939,1752900644389,-460.0,0.00016986,2]
[373192941,1752900644399,-460.0,0.00016986,2]
[373192943,1752900644408,-260.64729885,0.00016986,2]
[373192945,1752900644418,-460.0,0.00016986,2]
[373192947,1752900644427,-460.0,0.00016986,2]
[373192949,1752900644437,-460.0,0.00016986,2]
[373192951,1752900644447,-460.0,0.00016986,2]
[373192953,1752900644456,-460.0,0.00016986,2]
[373192955,1752900644466,-476.15220808,0.00016986,2]
[373192957,1752900644476,-460.0,0.00016986,2]
[373192959,1752900644486,-460.0,0.00016986,2]
[373192961,1752900644497,-460.0,0.00016986,2]
[373192963,1752900644507,-460.0,0.00016986,2]
[373192965,1752900644517,-466.86147756,0.00016986,2]
[373192967,1752900644526,-460.0,0.00016986,2]
[373192969,1752900644536,-460.0,0.00016986,2]
[373192971,1752900644546,-460.0,0.00016986,2]
[373192973,1752900644555,-460.0,0.00016986,2]
[373192975,1752900644564,-460.0,0.00016986,2]
[373192977,1752900644574,-460.0,0.00016986,2]
[373192980,1752900644589,-1075.38,0.00016986,2]
[373192982,1752900644598,-460.0,0.00016986,2]
[373192984,1752900644612,-460.0,0.00016986,2]
[373192986,1752900644622,-460.0,0.00016986,2]
[373192988,1752900644631,-460.0,0.00016986,2]
[373192990,1752900644641,-287.14175686,0.00016986,2]
[373192992,1752900644651,-460.0,0.00016986,2]
[373192994,1752900644660,-460.0,0.00016986,2]
[373192996,1752900644670,-460.0,0.00016986,2]
[373192998,1752900644680,-460.0,0.00016986,2]
[373193000,1752900644690,-460.0,0.00016986,2]
[373193003,1752900644700,-460.0,0.00016986,2]
[373193005,1752900644710,-460.0,0.00016986,2]
[373193007,1752900644722,-465.63051117,0.00016986,2]
[373193009,1752900644732,-460.0,0.00016986,2]
[373193011,1752900644742,-460.0,0.00016986,2]
[373193013,1752900644752,-465.17679717,0.00016986,2]
[373193015,1752900644761,-460.0,0.00016986,2]
[373193017,1752900644771,-256.75,0.00016986,2]
[373193019,1752900644781,-589.46,0.00016986,2]
[373193021,1752900644791,-3599.72,0.00016986,2]
[373193023,1752900644801,-2287.74,0.00016986,2]
[373193026,1752900644811,-460.0,0.00016986,2]
[373193028,1752900644821,-460.0,0.00016986,2]
[373193029,1752900644830,-2754.9,0.00016986,2]
[373193032,1752900644841,-460.0,0.00016986,2]
[373193034,1752900644851,-471.42,0.00016986,2]
[373193036,1752900644861,-471.16920484,0.00016986,2]
[373193038,1752900644871,-460.0,0.00016986,2]
[373193040,1752900644880,-460.0,0.00016986,2]
[373193042,1752900644890,-460.0,0.00016986,2]
[373193044,1752900644899,-920.5,0.00016986,2]
[373193046,1752900644909,-460.0,0.00016986,2]
[373193048,1752900644919,-460.0,0.00016986,2]
[373193050,1752900644930,-460.0,0.00016986,2]
[373193052,1752900644940,-1712.89,0.00016986,2]
[373193054,1752900644950,-590.44,0.00016986,2]
[373193056,1752900644959,-557.01,0.00016986,2]
[373193058,1752900644968,-776.6,0.00016986,2]
[373193060,1752900644978,-460.0,0.00016986,2]
[373193062,1752900644988,-460.0,0.00016986,2]
[373193065,1752900644998,-460.0,0.00016986,2]
[373193067,1752900645007,-964.8,0.00016986,2]
[373193069,1752900645017,-460.0,0.00016986,2]
[373193071,1752900645026,-893.47,0.00016986,2]
[373193073,1752900645035,-460.0,0.00016986,2]
[373193075,1752900645045,-542.74400995,0.00016986,2]
[373193077,1752900645054,-1517.57,0.00016986,2]
[373193079,1752900645064,-460.0,0.00016986,2]
[373193081,1752900645076,-460.0,0.00016986,2]
[373193083,1752900645086,-460.0,0.00016986,2]
[373193085,1752900645096,-460.0,0.00016986,2]
[373193087,1752900645106,-460.0,0.00016986,2]
[373193089,1752900645115,-460.0,0.00016986,2]
[373193091,1752900645124,-460.0,0.00016986,2]
[373193093,1752900645134,-460.0,0.00016986,2]
[373193095,1752900645143,-512.78,0.00016986,2]
[373193097,1752900645153,-1602.46,0.00016986,2]
[373193099,1752900645163,-460.0,0.00016986,2]
[373193101,1752900645173,-460.0,0.00016986,2]
[373193104,1752900645183,-1744.08,0.00016986,2]
[373193106,1752900645192,-460.0,0.00016986,2]
[373193108,1752900645202,-460.0,0.00016986,2]
[373193110,1752900645211,-460.0,0.00016986,2]
[373193112,1752900645220,-460.0,0.00016986,2]
[373193114,1752900645231,-460.0,0.00016986,2]
[373193116,1752900645240,-460.0,0.00016986,2]
[373193118,1752900645252,-460.0,0.00016986,2]
[373193120,1752900645262,-460.0,0.00016986,2]
[373193122,1752900645271,-460.0,0.00016986,2]
[373193124,1752900645281,-460.0,0.00016986,2]
[373193126,1752900645290,-460.0,0.00016986,2]
[373193128,1752900645299,-1317.83,0.00016986,2]
[373193130,1752900645309,-460.0,0.00016986,2]
[373193132,1752900645318,-460.0,0.00016986,2]
[373193134,1752900645328,-460.0,0.00016986,2]
[373193136,1752900645339,-1008.02044078,0.00017021,2]
[373193138,1752900645348,-1001.15649651,0.00017021,2]
[373193140,1752900645357,-500.0,0.00017021,2]
[373193142,1752900645367,-500.0,0.00017021,2]
[373193144,1752900645376,-502.51153415,0.00017021,2]
[373193146,1752900645386,-1000.0,0.00017021,2]
[373193148,1752900645396,-1143.57,0.00017045,2]
[373193150,1752900645406,-500.0,0.00017046,2]
[373193152,1752900645415,-3731.37734843,0.0001721,2]
[373193154,1752900645425,-153.75730681,0.00017258,2]
[373193156,1752900645435,-460.0,0.0001726,2]
[373193158,1752900645445,-460.0,0.0001726,2]
[373193161,1752900645455,-460.0,0.0001726,2]
[373193163,1752900645465,-460.0,0.0001726,2]
[373193165,1752900645474,-560.82,0.0001726,2]
[373193167,1752900645486,-460.0,0.0001726,2]
[373193169,1752900645495,-460.0,0.0001726,2]
[373193171,1752900645505,-460.0,0.0001726,2]
[373193173,1752900645515,-460.0,0.0001726,2]
[373193175,1752900645525,-460.0,0.0001726,2]
[373193177,1752900645534,-527.74,0.0001726,2]
[373193179,1752900645544,-460.0,0.0001726,2]
[373193181,1752900645554,-559.32849972,0.0001726,2]
[373193183,1752900645563,-460.0,0.0001726,2]
[373193185,1752900645572,-257.76349841,0.0001726,2]
[373193187,1752900645582,-460.0,0.0001726,2]
[373193189,1752900645592,-1075.38,0.0001726,2]
[373193191,1752900645601,-460.0,0.0001726,2]
[373193193,1752900645611,-460.0,0.0001726,2]
[373193196,1752900645621,-460.0,0.0001726,2]
[373193198,1752900645631,-460.0,0.0001726,2]
[373193200,1752900645640,-177.22860557,0.0001726,2]
[373193202,1752900645650,-460.0,0.0001726,2]
[373193203,1752900645660,-460.0,0.0001726,2]
[373193204,1752900645669,-460.0,0.0001726,2]
[373193205,1752900645679,-460.0,0.0001726,2]
[373193206,1752900645689,-460.0,0.0001726,2]
[373193207,1752900645698,-460.0,0.0001726,2]
[373193208,1752900645708,-589.46,0.0001726,2]
[373193209,1752900645718,-3599.72,0.0001726,2]
[373193210,1752900645728,-2287.74,0.0001726,2]
[373193211,1752900645737,-460.0,0.0001726,2]
[373193212,1752900645747,-2754.9,0.0001726,2]
[373193213,1752900645757,-471.42,0.0001726,2]
[373193214,1752900645767,-460.0,0.0001726,2]
[373193215,1752900645777,-460.0,0.0001726,2]
[373193217,1752900645787,-920.5,0.0001726,2]
[373193219,1752900645796,-460.0,0.0001726,2]
[373193221,1752900645806,-460.0,0.0001726,2]
[373193223,1752900645816,-1712.89,0.0001726,2]
[373193225,1752900645825,-557.01,0.0001726,2]
[373193227,1752900645835,-776.6,0.0001726,2]
[373193229,1752900645844,-460.0,0.0001726,2]
[373193231,1752900645854,-460.0,0.0001726,2]
[373193233,1752900645863,-460.0,0.0001726,2]
[373193235,1752900645872,-964.8,0.0001726,2]
[373193237,1752900645881,-460.0,0.0001726,2]
[373193238,1752900645891,-893.47,0.0001726,2]
[373193241,1752900645901,-460.0,0.0001726,2]
[373193243,1752900645910,-1517.57,0.0001726,2]
[373193245,1752900645920,-460.0,0.0001726,2]
[373193247,1752900645929,-460.0,0.0001726,2]
[373193248,1752900645939,-460.0,0.0001726,2]
[373193251,1752900645950,-460.0,0.0001726,2]
[373193253,1752900645960,-460.0,0.0001726,2]
[373193255,1752900645969,-460.0,0.0001726,2]
[373193258,1752900645990,-512.78,0.0001726,2]
[373193260,1752900646001,-1602.46,0.0001726,2]
[373193262,1752900646011,-460.0,0.0001726,2]
[373193264,1752900646021,-460.0,0.0001726,2]
[373193266,1752900646031,-1744.08,0.0001726,2]
[373193268,1752900646041,-460.0,0.0001726,2]
[373193270,1752900646052,-460.0,0.0001726,2]
[373193272,1752900646062,-460.0,0.0001726,2]
[373193274,1752900646072,-460.0,0.0001726,2]
[373193277,1752900646083,-469.98334508,0.0001726,2]
[373193279,1752900646094,-460.0,0.0001726,2]
[373193281,1752900646104,-1317.83,0.0001726,2]
[373193283,1752900646114,-460.0,0.0001726,2]
[373193285,1752900646124,-460.0,0.0001726,2]
[373193287,1752900646135,-1730.99,0.000173,2]
[373193289,1752900646145,-1143.57,0.00017319,2]
[373193291,1752900646155,-3731.37734843,0.00017521,2]
[373193293,1752900646164,-151.0,0.00017532,2]
[373193295,1752900646174,-500.0,0.00017533,2]
[373193297,1752900646184,-460.0,0.00017534,2]
[373193299,1752900646194,-474.64235238,0.00017534,2]
[373193301,1752900646205,-460.0,0.00017534,2]
[373193303,1752900646215,-560.82,0.00017534,2]
[373193305,1752900646225,-460.0,0.00017534,2]
[373193307,1752900646234,-460.0,0.00017534,2]
[373193309,1752900646244,-460.0,0.00017534,2]
[373193327,1752900646394,-460.0,0.00017534,2]
[373193330,1752900646425,-460.0,0.00017534,2]
[373193332,1752900646435,-460.0,0.00017534,2]
[373193334,1752900646445,-474.93,0.00017534,2]
[373193336,1752900646455,-1075.38,0.00017534,2]
[373193338,1752900646464,-460.0,0.00017534,2]
[373193340,1752900646474,-460.0,0.00017534,2]
[373193342,1752900646484,-374.19858829,0.00017534,2]
[373193344,1752900646493,-460.0,0.00017534,2]
[373193346,1752900646503,-460.0,0.00017534,2]
[373193348,1752900646512,-460.0,0.00017534,2]
[373193350,1752900646521,-589.46,0.00017534,2]
[373193352,1752900646531,-3599.72,0.00017534,2]
[373193354,1752900646541,-2287.74,0.00017534,2]
[373193356,1752900646551,-2754.9,0.00017534,2]
[373193358,1752900646560,-471.42,0.00017534,2]
[373193360,1752900646569,-460.0,0.00017534,2]
[373193362,1752900646579,-460.0,0.00017534,2]
[373193364,1752900646589,-920.5,0.00017534,2]
[373193366,1752900646599,-460.0,0.00017534,2]
[373193368,1752900646608,-474.89216432,0.00017534,2]
[373193370,1752900646618,-1712.89,0.00017534,2]
[373193372,1752900646628,-557.01,0.00017534,2]
[373193374,1752900646638,-776.6,0.00017534,2]
[373193376,1752900646647,-460.0,0.00017534,2]
[373193378,1752900646657,-460.0,0.00017534,2]
[373193380,1752900646668,-460.0,0.00017534,2]
[373193382,1752900646678,-964.8,0.00017534,2]
[373193384,1752900646687,-460.0,0.00017534,2]
[373193386,1752900646697,-893.47,0.00017534,2]
[373193389,1752900646707,-460.0,0.00017534,2]
[373193391,1752900646717,-1517.57,0.00017534,2]
[373193393,1752900646726,-460.0,0.00017534,2]
[373193394,1752900646735,-460.0,0.00017534,2]
[373193396,1752900646745,-460.0,0.00017534,2]
[373193398,1752900646754,-460.0,0.00017534,2]
[373193400,1752900646764,-460.0,0.00017534,2]
[373193403,1752900646774,-460.0,0.00017534,2]
[373193405,1752900646784,-512.78,0.00017534,2]
[373193407,1752900646793,-1602.46,0.00017534,2]
[373193408,1752900646802,-460.0,0.00017534,2]
[373193411,1752900646812,-1744.08,0.00017534,2]
[373193413,1752900646822,-460.0,0.00017534,2]
[373193415,1752900646836,-460.0,0.00017534,2]
[373193417,1752900646846,-460.0,0.00017534,2]
[373193419,1752900646856,-460.0,0.00017534,2]
[373193421,1752900646866,-460.0,0.00017534,2]
[373193423,1752900646876,-1317.83,0.00017534,2]
[373193425,1752900646886,-460.0,0.00017534,2]
[373193427,1752900646897,-460.0,0.00017534,2]
[373193429,1752900646907,-800.0,0.00017542,2]
[373193431,1752900646917,-411.94009619,0.00017568,2]
[373193433,1752900646927,-1143.57,0.00017593,2]
[373193436,1752900646937,-1000.0,0.00017594,2]
[373193438,1752900646947,-558.26514737,0.00017615,2]
[373193440,1752900646957,-480.58,0.00017798,3]
[373193442,1752900646967,-441.7,0.00017798,3]
[373193444,1752900646976,-151.0,0.00017806,2]
[373193446,1752900646986,-500.0,0.00017806,2]
[373193448,1752900646996,-460.0,0.00017808,2]
[373193450,1752900647005,-460.0,0.00017808,2]
[373193452,1752900647014,-560.82,0.00017808,2]
[373193454,1752900647024,-310.8,0.00017808,2]
[373193455,1752900647034,-460.0,0.00017808,2]
[373193458,1752900647043,-476.76,0.00017808,2]
[373193460,1752900647052,-515.52,0.00017808,2]
[373193461,1752900647062,-460.0,0.00017808,2]
[373193464,1752900647071,-1075.38,0.00017808,2]
[373193465,1752900647081,-460.0,0.00017808,2]
[373193468,1752900647092,-446.22123815,0.00017808,2]